Cogmind - Beta 11 X7 @@@ ROGUE MODE // 2021.08.30 @ 01:10:54 Player: spruce Result: Destroyed by as-09521 with Assembled Heavy Rifle Performance ------------- Evolutions (0) 0 Regions Visited (2) 400 Robots Destroyed (11) 55 Value Destroyed (206) 206 Prototype IDs (0) 0 Alien Tech Used (0) 0 Bonus (0) 0 TOTAL SCORE: 661 Bonus ------- None Cogmind --------- Core Integrity 0/250 Matter 290/300 Energy 45/100 System Corruption 0% Temperature Cool (0) Movement Core (700) Ox13 Location -10/Mines Parts ------- > --- POWER (1) -------- (None) > --- PROPULSION (2) --- (None) > --- UTILITY (2) ------ High-capacity Storage Unit > --- WEAPON (2) ------- (None) > --- INVENTORY (20) --- Aluminum Leg Aluminum Leg Large Storage Unit Large Storage Unit Core Shielding Medium Laser Medium Laser Spread Laser Light EM Pulse Cannon Light EM Pulse Cannon Light EM Pulse Cannon Light EM Pulse Cannon Light Assault Rifle Light Cannon Plasma Cutter Plasma Cutter Plasma Cutter Peak State ------------ > --- POWER ------------ Light Ion Engine > --- PROPULSION ------- Compact Wheel Compact Wheel > --- UTILITY ---------- Cooling System High-capacity Storage Unit > --- WEAPON ----------- Spread Laser Spread Laser > --- INVENTORY -------- Light Treads Light Treads Aluminum Leg Aluminum Leg Large Storage Unit Large Storage Unit Core Shielding Medium Laser Medium Laser Spread Laser Spread Laser Light Assault Rifle Plasma Cutter Plasma Cutter Plasma Cutter [Rating: 12] Favorites ----------- Power Ion Engine Engine Ion Engine Propulsion Compact Wheel Treads Light Treads Wheel Compact Wheel Utility High-capacity Storage Unit Device Cooling System Storage High-capacity Storage Unit Weapon Spread Laser Energy Gun Spread Laser Ballistic Gun Light Assault Rifle Build | -11 -10 -10 ------- Run | Scr Mat Min Slots Evolved . | . . . Power . | . . . Propulsion . | . . . Utility . | . . . Weapon . | . . . Parts Attached 20 | 8 9 3 Power 2 | 1 1 . Engine 2 | 1 1 . Core . | . . . Reactor . | . . . Propulsion 10 | 4 4 2 Treads 6 | 2 2 2 Leg . | . . . Wheel 4 | 2 2 . Hover . | . . . Flight . | . . . Utility 3 | 1 2 . Device 1 | . 1 . Storage 2 | 1 1 . Processor . | . . . Hackware . | . . . Protection . | . . . Artifact . | . . . Weapon 5 | 2 2 1 Energy Gun 4 | 1 2 1 Energy Cannon . | . . . Ballistic Gun 1 | 1 . . Ballistic Cannon . | . . . Launcher . | . . . Special Weapon . | . . . Impact Weapon . | . . . Slashing Weapon . | . . . Piercing Weapon . | . . . Special Melee Weapon . | . . . Unidentified Prototypes . | . . . Parts Lost 9 | . 1 8 Power 1 | . . 1 Propulsion 4 | . . 4 Utility 1 | . . 1 Weapon 3 | . 1 2 Highest Loss Streak 8 | . 1 8 Average Slot Usage (%) 90 | . 89 92 Engine 13 | . 14 12 Wheel 26 | . 27 24 Device 7 | . 5 12 Storage 14 | . 14 14 Energy Gun 22 | . 20 25 Ballistic Gun 4 | . 5 . Naked Turns . | . . . Heaviest Build 51 | 13 51 51 Greatest Support 40 | 40 32 40 Greatest Overweight (x) 4 | 4 3 3 Average Overweight (x) 2 | 1 2 2 Largest Inventory Capacity 20 | 8 20 20 Average Capacity 17 | 7 19 20 Most Carried 20 | 6 20 20 Average Carried 14 | 3 16 19 Final Capacity 20 | 8 20 20 Final Carried 20 | 6 20 17 Class Distribution -------------------- 100% | Mutant Dominant Class ---------------- Mutant | -10/Materials Mutant | -10/Mines Resources | -11 -10 -10 ----------- Run | Scr Mat Min Matter Collected 399 | 210 182 7 Remotely . | . . . Salvage Created 295 | . 295 . Parts 19 | . 19 . Haulers Intercepted 1 | . 1 . Recyclers Shooed 3 | . 3 . Parts Field Recycled . | . . . Retrieved Matter . | . . . Parts Self-Destructed . | . . . Prevented . | . . . Kills | -11 -10 -10 ------- Run | Scr Mat Min Combat Hostiles Destroyed 8 | . 7 1 Guns 8 | . 7 1 Classes Destroyed 6 | . 5 1 Hauler 1 | . 1 . Recycler 1 | . 1 . Watcher 2 | . 2 . Swarmer 3 | . 3 . Grunt 4 | . 4 . Assembled 1 | . . 1 Best Kill Streak 6 | . 6 1 Combat Bots Only 3 | . 3 1 Max Kills in Single Turn 1 | . 1 1 Gunslinging . | . . . Exploded . | . . . Melee . | . . . Uniques/NPCs Destroyed . | . . . Combat | -11 -10 -10 -------- Run | Scr Mat Min Damage Taken 1171 | . 215 956 Core 262 | . 37 225 Absorbed by Shields . | . . . Core Remaining (%) 100 | 100 . . Volleys Fired 39 | . 33 6 Largest 2 | . 2 2 Hottest 130 | . 130 130 Shots Fired 59 | . 50 9 Gun 59 | . 50 9 Cannon . | . . . Launcher . | . . . Special . | . . . Kinetic 12 | . 12 . Thermal 47 | . 38 9 Explosive . | . . . Electromagnetic . | . . . Robot Hit Streak 9 | . 9 8 Robot Miss Streak 9 | . 7 9 Penetration Max . | . . . Secondary Targets . | . . . Shots Hit Robots 51 | . 43 8 Core Hits 48 | . 36 12 Critical Kills . | . . . Critical Parts Destroyed . | . . . Critical Strikes . | . . . Melee Attacks . | . . . Impact . | . . . Slashing . | . . . Piercing . | . . . Sneak Attacks . | . . . Combat Hostiles . | . . . Follow-up Attacks . | . . . Damage Inflicted 575 | . 455 120 Guns 575 | . 455 120 Cannons . | . . . Explosions . | . . . Melee . | . . . Ramming . | . . . Kinetic 52 | . 52 . Thermal 523 | . 403 120 Explosive . | . . . Electromagnetic . | . . . Impact . | . . . Slashing . | . . . Piercing . | . . . Highest Corruption . | . . . Average Corruption . | . . . Corruption Purged . | . . . Overload Shots . | . . . Overflow Damage . | . . . Projectiles . | . . . Explosions . | . . . Melee . | . . . Knockbacks . | . . . Impact . | . . . Kinetic . | . . . Secondary . | . . . Self-Inflicted Damage . | . . . Shots . | . . . Rammed . | . . . Targets Rammed . | . . . Kicked . | . . . Crushed . | . . . Highest Temperature 399 | . 399 42 Average Temperature 143 | . 161 13 Received Heat Transfer 54 | . 54 . Effects 3 | . 3 . Matter Decay 1 | . 1 . Short Circuit 2 | . 2 . Siege Activations . | . . . Robots Corrupted . | . . . Combat Hostiles . | . . . Parts Fried . | . . . Impact Corruptions . | . . . Robots Melted . | . . . Combat Hostiles . | . . . Parts Melted . | . . . Heat Transferred 650 | . 500 150 Parts Sabotaged . | . . . Parts Stolen . | . . . Parts Stripped . | . . . Power Chain Reactions . | . . . Missiles Intercepted . | . . . Alert | -11 -10 -10 ------- Run | Scr Mat Min Peak Influence 207 | . 207 2 Initial 2 | . . 2 Average 60 | . 107 1 Maximum Alert Level 1 | . 1 . Low Security (%) 87 | 100 77 100 Level 1 12 | . 22 . Level 2 . | . . . Level 3 . | . . . Level 4 . | . . . Level 5 . | . . . High Security . | . . . Max Security . | . . . Squads Dispatched . | . . . Investigation . | . . . Extermination . | . . . Reinforcement . | . . . Assault . | . . . Garrison . | . . . Intercept . | . . . Construction Impeded . | . . . Haulers Reinforced . | . . . Active Scanning Responses . | . . . Cargo Convoy Interrupts . | . . . Stealth | -11 -10 -10 --------- Run | Scr Mat Min Distress Signals 1 | . 1 . Communications Jammed . | . . . Distress Signals . | . . . Times Spotted 25 | . 11 14 Peak Tracking Total 12 | . 4 12 Tactical Retreats 1 | . . 1 Traps | -11 -10 -10 ------- Run | Scr Mat Min Traps Triggered . | . . . Indirectly . | . . . Trap Hack Attempts . | . . . Triggered . | . . . Disarmed . | . . . Reprogrammed . | . . . Reused . | . . . Traps Extracted . | . . . Installed . | . . . Triggered . | . . . Machines | -11 -10 -10 ---------- Run | Scr Mat Min Machines Disabled . | . . . Max in Single Turn . | . . . Machines Sabotaged . | . . . Garrisons Compromised . | . . . Overloaded Fab Kills . | . . . Fab Network Shutdowns . | . . . Hacking | -11 -10 -10 --------- Run | Scr Mat Min Machines Accessed 1 | . 1 . Terminals 1 | . 1 . Fabricators . | . . . Repair Stations . | . . . Recycling Units . | . . . Scanalyzers . | . . . Garrison Access . | . . . Total Hacks 2 | . 2 . Successful 2 | . 2 . Failed . | . . . Catastrophic . | . . . Database Lockouts . | . . . Manual 2 | . 2 . Terminals 2 | . 2 . Fabricators . | . . . Repair Stations . | . . . Recycling Units . | . . . Scanalyzers . | . . . Garrison Access . | . . . Terminal Hacks 1 | . 1 . Hauler Manifests 1 | . 1 . Fabricator Hacks . | . . . Repair Station Hacks . | . . . Recycling Unit Hacks . | . . . Scanalyzer . | . . . Garrison Access Hacks . | . . . Unauthorized Hacks 1 | . 1 . Terminals 1 | . 1 . Botnet 1 | . 1 . Fabricators . | . . . Repair Stations . | . . . Recycling Units . | . . . Scanalyzers . | . . . Garrison Access . | . . . Data Cores Recovered . | . . . Used . | . . . Hacking Detections 1 | . 1 . Full Trace Events . | . . . Feedback Events . | . . . Feedback Blocked . | . . . Robot Schematics Acquired . | . . . Robots Built . | . . . Matter . | . . . Time . | . . . Total Robot Build Rating . | . . . Part Schematics Acquired . | . . . Parts Built . | . . . Matter . | . . . Time . | . . . Total Part Build Rating . | . . . Parts Repaired . | . . . Time . | . . . Parts Recycled . | . . . Recycled Matter . | . . . Retrieved Matter . | . . . Retrieved Components . | . . . Parts Scanalyzed . | . . . Part Schematics Acquired . | . . . Parts Damaged . | . . . Bothacking | -11 -10 -10 ------------ Run | Scr Mat Min Used RIF Installer . | . . . Robots Hacked . | . . . Non-combat . | . . . Combat . | . . . Robot Hacks Applied . | . . . Relay Couplers Released . | . . . Robots Rewired . | . . . Allies Hacked . | . . . Hacks Repelled . | . . . Allies | -11 -10 -10 -------- Run | Scr Mat Min Total Allies . | . . . Largest Group . | . . . Highest-Rated Group . | . . . Highest-Rated Ally . | . . . Total Orders . | . . . Ally Attacks . | . . . Total Damage . | . . . Kills . | . . . Allies Corrupted . | . . . Allies Melted . | . . . Intel | -11 -10 -10 ------- Run | Scr Mat Min Robot Analysis Total . | . . . Derelict Logs Recovered . | . . . Drone Launches . | . . . Drone Recoveries . | . . . Exploration | -11 -10 -10 ------------- Run | Scr Mat Min Turns Passed 799 | 182 445 172 Spaces Moved 461 | 103 253 105 Core 68 | 68 . . Treads 20 | 18 . 2 Legs . | . . . Wheels 373 | 17 253 103 Hover . | . . . Flight . | . . . Fastest Speed 50 | 50 100 130 Average Speed 140 | 160 130 145 Slowest Speed 260 | 250 145 260 Overloaded Moves . | . . . Propulsion Burnouts . | . . . Robots Hopped . | . . . Cave-ins Triggered . | . . . Exploration Rate (%) 23 | 7 42 22 Regions Visited 2 Branch Regions 1 Pre-discovered Areas . | . . . Known Exits Taken . | . . . Unknown Exits Taken 2 | 1 1 . Scrap Searched . | . . . Spaces Dug . | . . . Terrain Destroyed . | . . . Melee . | . . . Projectile . | . . . AOE . | . . . Terrain Rammed . | . . . Walls Destroyed . | . . . Machines Disabled . | . . . Actions | -11 -10 -10 --------- Run | Scr Mat Min Total 550 | 116 318 116 Wait 7 | . 6 1 Move 459 | 102 252 105 Hop . | . . . Pick Up 22 | 6 16 . Fast Attach 8 | 6 2 . Attach 5 | . 2 3 Detach . | . . . Swap 7 | 2 5 . Drop 3 | . 2 1 Fire 39 | . 33 6 Melee . | . . . Ram . | . . . Kick . | . . . Crush . | . . . Escape Stasis . | . . . Rewire . | . . . Trap . | . . . Miscellaneous . | . . . Route ------- -11/Scrapyard -10/Materials (discovered 2 exits: [*Mat] / [*Min]) -10/Mines History --------- Turn | Location | Event 9 | -11/Scrapyard | Discovered new exit (range 13) 183 | -11/Scrapyard | Entered Materials 301 | -10/Materials | Build established: Mutant 404 | -10/Materials | Discovered new exit (range 16) 534 | -10/Materials | Discovered new exit (range 7) 628 | -10/Materials | Entered Mines 721 | -10/Mines | Assembled infested the area 726 | -10/Mines | Assisted by a Guerilla fighting off Assembled 788 | -10/Mines | Core integrity fell below 50% 799 | -10/Mines | Core integrity fell below 20% 800 | -10/Mines | Destroyed by as-09521 with Assembled Heavy Rifle Last Messages --------------- 00760_ as-76049 destroyed. 00765_ Acquired 6 matter. 00766_ U-05 Engineer builds a Wall. 00768_ Acquired 1 matter. 00770_ U-05 Engineer builds a Wall. 00772_ The unstable cave ceiling collapses. 00773_ U-05 Engineer destroyed. 00782_ Cooling System destroyed. 00784_ Lgt. Ion Engine destroyed. 00786_ Spread Laser destroyed. 00786_ Broken Com. Wheel destroyed. 00786_ Dropped Spread Laser. 00788_ as-98319 destroyed. 00788_ Com. Wheel destroyed. 00789_ The unstable cave ceiling collapses. 00790_ as-54850 destroyed. 00793_ The unstable cave ceiling collapses. 00796_ Spread Laser destroyed. 00797_ The unstable cave ceiling collapses. 00798_ Lgt. Treads destroyed. Map ----- +----------------------------------------------------+ | ??????????????????? ??????????? | | ???????????????????# ??????????? | | ???????????????????# ###???????? | | ???????????????????# ##??????? | | ??????????????????## #??????? | | ??????????????????# ##?????? | | ??????????????????? #?????? | | ???????????????????# #?????? | | ???????????????????# #??????? | | ???????????????????# #???????? | | ???????????????????# ##??????? | | ## ########????# a ##?????? | | #######a ##????? | | $ a #????? | | ######## ##???? | | ???????????########## #???? | | ????????????????????# #???? | | ????????????????????# ###??? | | ???????????????###### %% # #??? | | ??????????????## # # ##?? | | ?????????????## ##? | | ????????????## % #? | | ????????????# ## | | ????????????# %d # | | ???????????## # | | ?????????### d @ # | | ????????## ## # | | ????????# ###### # | | ??????## ##????# ## | | ??????# #?????### ##? | | ??????# ##???????#########?? | | ??????# #??????????????????? | | ??????# ????????????????????? | | ??????# #????????????????????? | | ??????# %#????????????????????? | | ?????? ## ########?????????????? | | ????????# #?????????????? | | ????????# ###### #?????????????? | | ????????# #????# #?????????????? | | ????????# #???## #?????????????? | | ????????# #??## ##????????????? | | ????????# #??# #????????????? | | ????????# #??# #????????????? | | ????????# #??# #????????????? | | ????????# ### #????????????? | | ????????## ##????????????? | | ?????????# ###?????????????? | | ?????????# ##???????????????? | | ?????????# #????????????????? | | ?????????## #????????????????? | +----------------------------------------------------+ Best States ------------- Heat Dissipation 47 Energy Generation 10 Energy Capacity 250 Matter Stores 300 Matter Capacity 300 Sight Range 16 Terrain Scan Density 10 Evasion (%) 50 Recoil Reduction 2 Item Schematics ----------------- None Robot Schematics ------------------ None Fabricated ------------ Nothing Alien Tech Used ----------------- None Achievements -------------- None Challenges ------------ None Game ------ Seed CloakRecyclingSaw Manual? 0 Play Time 00:09:31 Cumulative 207.6 hours Start 2021.08.30 @ 00:48:16 End 2021.08.30 @ 01:10:54 Sessions 1 Manual Loads 0 Difficulty Rogue Special Mode None Game No. 258 Rogue 258 Adventurer 0 Explorer 0 Win Type - Total 11 Types 3/3/0/1/1/3/0/0/0 Lore% 91 Gallery% 89 Achievement% 73 Wizard Run 0 Options --------- ASCII 0 Keyboard 0 Movement Numpad Keybinds 0 Fullscreen 2 Font 24/Smallcaps Map View 76x50 Tactical HUD 1 Map Filters NONE Filters NONE Steam 1 RUN: 149d8a1b-4e78-438a-8514-9e010dc8b55e